bitfinex/quotes_SOLUSD_20220208
["timestamp","ask_amount","ask_price","bid_price","bid_amount"]
[1644325285148,31.82026238,112.52,112.44,0.024]
[1644325285348,33.92801787,112.52,112.44,0.024]
[1644325286168,4.445,112.51,112.44,0.024]
[1644325286368,18.48316238,112.51,112.44,0.024]
[1644325286568,13.3439,112.49,112.44,0.024]
[1644325286767,22.7839,112.49,112.42,24.5745]
[1644325287969,26.9799,112.49,112.42,24.5745]
[1644325288170,26.9799,112.49,112.42,0.024]
[1644325288369,26.9799,112.49,112.41,48.72832433]
[1644325288568,28.20806238,112.49,112.41,48.72832433]
[1644325289570,23.76206238,112.49,112.41,48.72832433]
[1644325290171,23.76206238,112.49,112.41,48.97832433]
[1644325290370,24.01206238,112.49,112.41,48.97832433]
[1644325290573,24.01206238,112.49,112.41,48.72832433]
[1644325291875,14.82206238,112.49,112.41,48.72832433]
[1644325292074,13.5939,112.49,112.41,48.97832433]
[1644325292476,13.5939,112.49,112.41,54.97832433]
[1644325293077,13.5939,112.49,112.41,78.06572433]
[1644325293677,13.5939,112.49,112.41,85.40632433]
[1644325295177,13.5939,112.49,112.41,91.40632433]
[1644325295976,13.5939,112.49,112.41,78.06572433]
[1644325296175,22.5259,112.49,112.41,72.06572433]
[1644325296375,22.5259,112.49,112.41,71.81572433]
[1644325296576,23.75406238,112.49,112.41,71.81572433]
[1644325298377,23.75406238,112.49,112.41,72.06572433]
[1644325298579,14.82206238,112.49,112.41,72.06572433]
[1644325298780,14.82206238,112.49,112.41,71.81572433]
[1644325299182,14.82206238,112.49,112.41,23.1114]
[1644325299380,1.22816238,112.48,112.41,23.1114]
[1644325299580,13.3447,112.46,112.41,23.0874]
[1644325300084,13.3447,112.46,112.42,47.08063978]
[1644325300282,13.3447,112.46,112.41,23.0874]
[1644325301082,13.3429,112.47,112.41,23.0874]
[1644325301284,13.3429,112.47,112.42,42.33532063]
[1644325302184,24.2905,112.49,112.42,42.58532063]
[1644325302382,24.2905,112.49,112.42,42.60932063]
[1644325302585,13.3415,112.48,112.42,42.35932063]
[1644325302787,13.3415,112.48,112.42,42.33532063]
[1644325303186,13.3415,112.48,112.42,42.58532063]
[1644325304185,13.5915,112.48,112.42,42.58532063]
[1644325304686,13.5915,112.48,112.42,42.33532063]
[1644325305986,13.3415,112.48,112.42,42.58532063]
[1644325306189,14.56786238,112.5,112.42,44.52561156]
[1644325306388,13.3397,112.5,112.42,44.29961156]
[1644325306593,13.3397,112.5,112.42,42.60932063]
[1644325306987,14.56786238,112.5,112.42,42.60932063]
[1644325307590,13.3397,112.5,112.42,42.60932063]
[1644325308293,13.3397,112.5,112.43,1.94029093]
[1644325308294,13.5897,112.5,112.43,1.94029093]
[1644325308492,13.5897,112.5,112.43,0.024]
[1644325308691,13.5897,112.5,112.42,55.94932063]
[1644325308889,13.5897,112.5,112.42,55.69932063]
[1644325309088,14.81786238,112.5,112.42,42.35932063]
[1644325309288,1.22816238,112.49,112.42,42.35932063]
[1644325309489,13.3417,112.48,112.42,42.35932063]
[1644325309688,13.3417,112.48,112.42,42.33532063]
[1644325310287,13.3417,112.48,112.42,42.58532063]
[1644325312191,13.5917,112.48,112.42,0.25]
[1644325312393,13.5917,112.48,112.41,23.1114]
[1644325312793,13.5917,112.48,112.41,23.0874]
[1644325312991,14.81986238,112.48,112.41,23.0874]
[1644325314392,14.81986238,112.48,112.42,42.58871485]
[1644325314592,19.26586238,112.48,112.42,42.58871485]
[1644325314993,19.26586238,112.48,112.41,23.1114]
[1644325315195,19.26586238,112.48,112.41,23.0874]
[1644325315794,19.26586238,112.48,112.39,0.024]
[1644325315995,1.22816238,112.47,112.39,0.024]
[1644325316196,14.57786238,112.45,112.37,0.024]
[1644325316399,0.44,112.43,112.37,0.024]
[1644325316597,12.81,112.42,112.34,0.024]
[1644325316798,12.81,112.42,112.33,0.024]
[1644325316799,1.22816238,112.41,112.33,0.024]
[1644325316998,12.81,112.4,112.3,6.57181]
[1644325317196,13.3574,112.38,112.31,0.024]
[1644325317398,26.1674,112.38,112.3,42.04741409]
[1644325317699,4.45,112.37,112.3,6.54781]
[1644325317897,10.073,112.37,112.3,6.54781]
[1644325318097,17.26,112.36,112.3,6.54781]
[1644325318296,13.3598,112.35,112.27,0.024]
[1644325318497,4.45,112.34,112.27,0.024]
[1644325318798,12.343,112.34,112.26,45.37840361]
[1644325319799,13.3625,112.32,112.26,45.37840361]
[1644325320302,12.81,112.35,112.26,45.62840361]
[1644325320500,12.81,112.35,112.27,0.024]
[1644325320902,26.1691,112.35,112.27,0.024]
[1644325323606,26.4191,112.35,112.27,0.024]
[1644325324602,28.52685549,112.35,112.27,0.024]
[1644325324812,4.45,112.34,112.25,0.024]
[1644325325005,13.3669,112.3,112.23,0.024]
[1644325325206,4.453,112.29,112.18,0.024]
[1644325325414,19.37075549,112.29,112.18,0.024]
[1644325325608,19.37075549,112.29,112.18,41.45090005]
[1644325325609,2.10775549,112.28,112.18,41.45090005]
[1644325325809,12.81,112.27,112.18,41.45090005]
[1644325326009,4.455,112.26,112.18,41.45090005]
[1644325326208,26.1798,112.26,112.18,41.45090005]
[1644325326409,26.1798,112.26,112.19,1.94082104]
[1644325326608,47.6684,112.32,112.19,1.94082104]
[1644325326825,12.81,112.31,112.2,0.024]
[1644325327025,17.265,112.33,112.2,0.024]
[1644325327225,12.81,112.33,112.21,1.94082104]
[1644325327527,4.453,112.32,112.22,45.93375438]
[1644325327724,13.3659,112.3,112.23,0.024]
[1644325327929,13.3659,112.3,112.23,1.94082104]
[1644325328124,12.81,112.33,112.23,1.96482104]
[1644325328326,6.57641,112.32,112.24,1.96482104]
[1644325328626,6.57641,112.32,112.23,0.024]
[1644325329225,19.94001,112.32,112.23,0.024]
[1644325329424,42.32201,112.32,112.23,0.024]
[1644325329931,42.32201,112.32,112.21,0.024]
[1644325330229,44.42976549,112.32,112.21,0.024]
[1644325330424,44.86976549,112.32,112.21,0.024]
[1644325330627,44.86976549,112.32,112.21,36.74617629]
[1644325330825,42.32201,112.32,112.22,0.024]
[1644325331124,4.453,112.31,112.22,1.96395299]
[1644325331324,32.75001,112.32,112.23,1.96395299]
[1644325331624,32.75001,112.32,112.24,0.024]
[1644325332125,19.94001,112.32,112.22,0.024]
[1644325332426,20.19001,112.32,112.22,1.96395299]
[1644325332625,33.00001,112.32,112.23,0.024]
[1644325333026,33.00001,112.32,112.22,0.024]
[1644325333526,33.00001,112.32,112.22,1.96395299]
[1644325333726,19.94001,112.32,112.23,0.024]
[1644325333926,6.57641,112.32,112.23,12.834]
[1644325334126,6.57641,112.32,112.25,44.07208491]
[1644325334333,6.57641,112.32,112.25,44.09608491]
[1644325334530,53.5907,112.4,112.26,1.93995299]
[1644325334728,13.0355,112.44,112.26,2.21395299]
[1644325334729,6.57641,112.39,112.26,2.21395299]
[1644325334928,6.57641,112.39,112.27,12.81]
[1644325335127,19.93141,112.39,112.28,0.024]
[1644325335328,13.355,112.39,112.28,14.77395299]
[1644325335528,13.355,112.39,112.29,39.7621515]
[1644325335730,13.355,112.39,112.29,41.95210449]
[1644325336731,13.355,112.39,112.3,1.93995299]
[1644325336933,13.3528,112.41,112.31,0.024]
[1644325337334,4.449,112.42,112.33,39.66343445]
[1644325337530,51.06866516,112.45,112.34,0.024]
[1644325337731,4.448,112.44,112.34,0.024]
[1644325337930,2.10775549,112.44,112.34,0.024]
[1644325338729,13.3505,112.43,112.35,1.93995299]
[1644325338933,13.3505,112.43,112.36,0.024]
[1644325339131,13.3505,112.43,112.35,7.93995299]
[1644325339331,18.07916516,112.45,112.35,6.274]
[1644325339531,4.448,112.45,112.38,41.36334182]
[1644325340432,17.7961,112.45,112.38,41.36334182]
[1644325340633,18.0461,112.45,112.38,41.36334182]
[1644325340833,13.5981,112.45,112.38,41.36334182]
[1644325341537,0.00816238,112.48,112.4,42.2468947]
[1644325341732,0.00816238,112.49,112.4,42.4968947]
[1644325341933,13.339,112.53,112.41,14.74995299]
[1644325342133,12.81,112.56,112.42,39.6863022]
[1644325342333,4.444,112.55,112.44,48.75508224]
[1644325342535,4.444,112.56,112.44,62.09138224]
[1644325342733,4.444,112.56,112.44,68.34138224]
[1644325342933,4.444,112.56,112.44,70.28133523]
[1644325343937,13.3367,112.55,112.44,74.72533523]
[1644325344136,12.81,112.58,112.44,74.72533523]
[1644325344635,113.1,112.57,112.46,39.20097137]
[1644325344848,113.1,112.57,112.46,39.45097137]
[1644325345037,126.4345,112.57,112.46,45.20097137]
[1644325345238,126.4345,112.57,112.44,19.19395299]
[1644325345438,4.444,112.56,112.45,6.0]
[1644325345842,4.444,112.56,112.45,6.25]
[1644325346039,4.694,112.56,112.45,0.25]
[1644325346239,4.694,112.56,112.45,44.826848]
[1644325346439,4.444,112.56,112.45,44.826848]
[1644325346640,113.1,112.57,112.45,44.826848]
[1644325346841,13.3355,112.56,112.45,44.826848]
[1644325347042,4.444,112.55,112.45,0.25]
[1644325347244,4.444,112.55,112.43,47.1798]
[1644325347442,15.124,112.56,112.43,53.1798]
[1644325347844,15.374,112.56,112.43,47.1798]
[1644325348044,15.374,112.56,112.44,50.26653614]
[1644325348245,10.93,112.56,112.44,50.51653614]
[1644325348446,0.25,112.56,112.44,10.68]
[1644325348645,13.3384,112.54,112.43,6.0]
[1644325348844,0.44,112.53,112.4,34.7332]
[1644325349043,13.58075549,112.53,112.4,30.0532]
[1644325349244,4.445,112.52,112.4,30.0532]
[1644325349448,4.445,112.52,112.41,43.2607428]
[1644325349748,13.3406,112.52,112.41,47.32078981]
[1644325349947,13.3406,112.52,112.41,59.9407428]
[1644325350447,13.3406,112.52,112.41,60.1907428]
[1644325352147,13.3406,112.52,112.41,73.5295428]
[1644325352353,7.34589882,112.61,112.41,137.8075428]
[1644325352547,6.90589882,112.61,112.52,1.93995299]
[1644325352750,13.3327,112.59,112.53,40.19217822]
[1644325352949,0.03430634,112.63,112.53,50.87217822]
[1644325353155,0.03430634,112.62,112.53,57.12217822]
[1644325353355,0.03430634,112.62,112.54,1.95505143]
[1644325353554,0.03430634,112.62,112.55,38.84393486]
[1644325353755,0.03430634,112.66,112.56,4.441]
[1644325353950,8.10880942,112.75,112.57,56.2644865]
[1644325353951,0.03430634,112.68,112.57,56.2644865]
[1644325354151,0.03430634,112.65,112.57,64.21953793]
[1644325354391,0.03430634,112.65,112.57,75.7341865]
[1644325354550,0.03430634,112.7,112.58,6.39505143]
[1644325354750,0.03430634,112.72,112.59,57.90939262]
[1644325354952,0.03430634,112.69,112.59,57.90939262]
[1644325355150,2.10775549,112.72,112.59,63.90939262]
[1644325355350,0.03430634,112.7,112.59,64.15939262]
[1644325355550,0.03430634,112.71,112.59,64.15939262]
[1644325355752,0.03430634,112.71,112.59,77.47619262]
[1644325355952,2.14206183,112.71,112.59,77.47619262]
[1644325356154,2.10775549,112.71,112.59,77.47619262]
[1644325356354,0.03430634,112.7,112.59,77.47619262]
[1644325356851,2.14206183,112.7,112.59,77.47619262]
[1644325357050,2.10775549,112.7,112.59,77.47619262]
[1644325357251,0.03430634,112.69,112.59,77.47619262]
[1644325357653,2.10775549,112.68,112.59,63.90939262]
[1644325357854,0.03430634,112.71,112.6,99.0]
[1644325358054,0.03430634,112.71,112.62,38.9090045]
[1644325358254,0.03430634,112.76,112.63,10.68]
[1644325358453,4.437,112.8,112.64,40.71662871]
[1644325358454,0.03430634,112.7,112.64,40.71662871]
[1644325358754,0.03430634,112.75,112.65,10.68]
[1644325358956,0.03430634,112.79,112.66,43.56722568]
[1644325359154,0.03430634,112.79,112.67,10.68]
[1644325359355,4.434,112.78,112.68,42.82139145]
[1644325359554,0.03430634,112.78,112.69,10.68]
[1644325359858,4.46830634,112.77,112.69,10.68]
[1644325360057,0.03430634,112.79,112.66,10.68]
[1644325360254,2.54775549,112.76,112.64,10.68]
[1644325360460,18.72530601,112.76,112.61,10.68]
[1644325360656,6.54475549,112.75,112.62,38.05018967]
[1644325360853,13.3189,112.73,112.62,38.05018967]
[1644325361056,0.03430634,112.72,112.62,38.05018967]
[1644325361253,6.57906183,112.72,112.62,38.05018967]
[1644325361853,4.47130634,112.72,112.62,38.05018967]
[1644325362458,4.437,112.79,112.63,94.95536696]
[1644325362657,0.00477501,112.71,112.64,44.86161411]
[1644325362860,0.00477501,112.71,112.64,47.24698107]
[1644325363060,4.434,112.8,112.66,133.44]
[1644325363266,4.437,112.86,112.67,10.68]
[1644325363458,6.57641,112.85,112.68,146.7442]
[1644325363763,6.57641,112.85,112.69,59.4489]
[1644325363962,6.07641,112.85,112.7,44.84135183]
[1644325364265,6.07641,112.85,112.71,15.113]
[1644325364465,6.07641,112.85,112.72,180.8854913]
[1644325364766,6.07641,112.85,112.74,43.41942261]
[1644325364960,6.07641,112.85,112.75,10.68]
[1644325365163,0.44514318,112.87,112.76,39.9294688]
[1644325365366,0.44514318,112.87,112.77,10.68]
[1644325365564,0.44514318,112.87,112.78,40.88692584]
[1644325365766,0.44514318,112.87,112.79,10.68]
[1644325365966,0.44514318,112.87,112.8,46.38715571]
[1644325369096,0.44514318,112.87,112.77,6.0]
[1644325369295,0.44514318,112.87,112.77,10.68]
[1644325369493,12.52889867,112.87,112.77,10.68]
[1644325369694,12.52889867,112.87,112.75,6.0]
[1644325369993,19.10530867,112.87,112.74,6.0]
[1644325370195,16.99755318,112.87,112.75,47.04758314]
[1644325370594,7.02155318,112.87,112.75,55.01188592]
[1644325370795,20.32315318,112.87,112.75,53.29758314]
[1644325371798,20.32315318,112.87,112.75,55.26188592]
[1644325372000,7.02155318,112.87,112.75,65.94188592]
[1644325372396,7.02155318,112.87,112.77,43.38428842]
[1644325372596,7.02155318,112.87,112.77,54.06428842]
[1644325372797,7.02155318,112.87,112.77,60.06428842]
[1644325372997,7.02155318,112.87,112.77,54.31428842]
[1644325373196,0.69514318,112.87,112.77,60.31428842]
[1644325373596,0.44514318,112.87,112.77,60.31428842]
[1644325373997,0.44514318,112.87,112.78,1.96430278]
[1644325374201,0.44514318,112.87,112.79,43.60756339]
[1644325375596,4.87614318,112.87,112.79,43.60756339]
[1644325375799,0.44514318,112.87,112.79,43.60756339]
[1644325376199,0.44514318,112.87,112.79,49.85756339]
[1644325376801,0.44514318,112.87,112.79,49.60756339]
[1644325377199,0.44514318,112.87,112.79,43.60756339]
[1644325377602,0.48033352,112.87,112.79,43.60756339]
[1644325380901,13.78253352,112.87,112.79,43.60756339]
[1644325381101,13.78253352,112.87,112.76,10.68]
[1644325381301,0.03519034,112.86,112.75,23.7105]
[1644325381702,4.46719034,112.86,112.72,47.7487]
[1644325381904,4.46719034,112.86,112.72,53.7487]
[1644325382102,4.46719034,112.86,112.73,41.8143374]
[1644325382304,4.46719034,112.86,112.73,42.0643374]
[1644325382505,4.46719034,112.86,112.73,48.0643374]
[1644325382704,13.3042,112.85,112.73,48.0643374]
[1644325382905,0.03519034,112.84,112.73,48.0643374]
[1644325383314,2.14294583,112.84,112.73,47.8143374]
[1644325383511,0.03519034,112.83,112.73,48.0643374]
[1644325383907,0.03519034,112.83,112.73,47.8143374]
[1644325384709,13.34089034,112.83,112.73,47.8143374]
[1644325385310,13.34089034,112.83,112.73,54.3371674]
[1644325385509,15.76307171,112.83,112.73,54.3371674]
[1644325386511,15.76307171,112.83,112.73,54.5871674]
[1644325386708,13.34089034,112.83,112.73,54.5871674]
[1644325386909,2.45737171,112.83,112.73,56.5516399]
[1644325387112,4.92808844,112.83,112.73,67.2316399]
[1644325387512,0.03519034,112.83,112.73,67.2316399]
[1644325387711,2.42218137,112.84,112.73,67.2316399]
[1644325387913,0.03519034,112.82,112.73,60.7088099]
[1644325388110,0.03519034,112.83,112.73,60.7088099]
[1644325389110,2.45737171,112.83,112.73,60.7088099]
[1644325389410,2.42218137,112.83,112.73,60.7088099]
[1644325389609,0.03519034,112.82,112.73,60.7088099]
[1644325390813,2.50590707,112.82,112.73,60.7088099]
[1644325391014,2.50590707,112.82,112.73,58.7443374]
[1644325391212,4.92808844,112.82,112.73,58.7443374]
[1644325391912,2.42218137,112.8,112.73,58.7443374]
[1644325392113,2.42218137,112.8,112.75,34.8606081]
[1644325392317,2.42218137,112.8,112.75,45.7906081]
[1644325392615,5.38662248,112.87,112.76,1.96132605]
[1644325392616,2.45737171,112.83,112.76,1.96132605]
[1644325392814,2.42218137,112.83,112.77,51.44329064]
[1644325393214,2.42218137,112.83,112.77,57.69329064]
[1644325393513,2.42218137,112.84,112.78,1.96132605]
[1644325393715,2.42218137,112.84,112.79,53.77218185]
[1644325394118,2.42218137,112.85,112.79,61.9835079]
[1644325394517,2.48541355,112.86,112.79,61.9835079]
[1644325394518,2.48541355,112.86,112.8,53.28]
[1644325394718,0.00519034,112.86,112.82,53.28]
[1644325394919,2.93148943,112.87,112.81,47.32520724]
[1644325394920,2.93148943,112.87,112.83,55.98379809]
[1644325395419,0.44514318,112.87,112.83,45.55379809]
[1644325395616,0.44514318,112.87,112.79,6.0]
[1644325395818,4.96960297,112.86,112.8,6.0]
[1644325396025,4.96960297,112.86,112.79,6.25]
[1644325396416,2.93148943,112.87,112.79,0.25]
[1644325396618,2.93148943,112.87,112.79,51.70296489]
[1644325396819,4.96962469,112.86,112.79,45.70296489]
[1644325397017,2.48634625,112.85,112.79,45.70296489]
[1644325398719,5.00518286,112.86,112.79,56.38296489]
[1644325398918,2.9670476,112.87,112.79,56.38296489]
[1644325399119,2.93148943,112.87,112.79,62.63296489]
[1644325402826,3.18148943,112.87,112.79,75.92616489]
[1644325403427,3.18148943,112.87,112.79,89.21106489]
[1644325404431,3.18148943,112.87,112.8,1.9625306]
[1644325404632,0.69514318,112.87,112.81,49.23409062]
[1644325404829,0.69514318,112.87,112.81,49.48409062]
[1644325404830,0.44514318,112.87,112.81,49.48409062]
[1644325405030,0.44514318,112.87,112.81,55.48409062]
[1644325407133,2.48634625,112.88,112.83,34.43018608]
[1644325407334,0.03555817,112.9,112.84,54.0]
[1644325407536,0.00273446,112.93,112.89,1.95790488]
[1644325407733,3.72410168,112.98,112.9,57.1017337]
[1644325408133,3.72410168,112.98,112.9,76.6343337]
[1644325408332,13.2839,113.0,112.9,78.59223858]
[1644325408533,4.426,112.99,112.9,59.05963858]
[1644325408733,4.426,112.99,112.9,57.1017337]
[1644325409353,17.7107,112.99,112.9,57.1017337]
[1644325409555,17.9607,112.99,112.9,57.1017337]
[1644325410255,3.72410168,113.01,112.9,65.05499678]
[1644325410458,17.7095,113.0,112.9,57.1017337]
[1644325410656,17.7095,113.0,112.9,63.1017337]
[1644325410657,13.31916226,113.0,112.9,63.1017337]
[1644325410856,13.31916226,113.0,112.9,57.3517337]
[1644325411455,13.31916226,113.0,112.9,10.68]
[1644325411658,4.426,112.99,112.87,69.7291]
[1644325411855,13.289,112.96,112.87,69.7291]
[1644325412059,13.32466226,112.96,112.87,69.7291]
[1644325412258,0.03566226,112.96,112.87,69.7291]
[1644325412557,0.03566226,113.0,112.88,57.56273785]
[1644325412759,0.03566226,112.96,112.88,57.56273785]
[1644325412962,0.03566226,112.99,112.89,1.95326308]
[1644325413161,0.03566226,113.0,112.9,42.95304739]
[1644325413560,4.46366226,113.01,112.9,42.95304739]
[1644325413762,13.286,112.98,112.9,43.20304739]
[1644325413957,4.426,113.0,112.9,43.20304739]
[1644325414160,0.28566226,113.01,112.91,1.95359561]
[1644325414358,0.03566226,113.0,112.92,46.33583074]
[1644325414558,0.03566226,113.01,112.92,52.33583074]
[1644325414758,0.03566226,113.01,112.92,52.58583074]
[1644325414958,0.03566226,113.03,112.92,54.53942635]
[1644325415159,4.425,113.02,112.92,54.53942635]
[1644325415359,17.74186226,113.02,112.92,46.33583074]
[1644325415562,13.31686226,113.02,112.92,46.33583074]
[1644325416159,15.42461775,113.02,112.92,46.33583074]
[1644325416359,13.285,112.99,112.92,46.33583074]
[1644325421065,13.285,112.99,112.89,10.68]
[1644325421268,13.57066226,112.99,112.88,24.7847]
[1644325421667,15.67841775,112.99,112.88,24.7847]
[1644325421868,15.67841775,112.99,112.85,10.68]
[1644325422067,13.29,112.95,112.86,41.14408465]
[1644325422466,13.29,112.95,112.86,47.14408465]
[1644325422967,13.29,112.95,112.86,41.14408465]
[1644325423567,17.718,112.95,112.86,41.14408465]
[1644325424771,13.54,112.95,112.86,41.14408465]
[1644325427169,13.29,112.95,112.86,41.14408465]
[1644325427371,13.29,112.95,112.86,41.39408465]
[1644325428772,13.54,112.95,112.86,41.39408465]
[1644325432273,13.54,112.95,112.86,41.14408465]
[1644325433376,17.26410168,112.95,112.86,41.14408465]
[1644325433977,30.05185717,112.95,112.86,41.14408465]
[1644325435578,30.05185717,112.95,112.84,35.8064]
[1644325435783,34.47985717,112.95,112.84,35.8064]
[1644325436580,34.47985717,112.95,112.85,39.25824205]
[1644325436779,13.2939,112.92,112.85,39.25824205]
[1644325439589,13.2939,112.92,112.82,38.1141]
[1644325439787,19.86631775,112.92,112.8,24.4553]
[1644325439986,3.75976394,112.91,112.77,47.272]
[1644325440187,13.2989,112.87,112.77,47.272]
[1644325440587,13.2989,112.87,112.78,40.90470838]
[1644325441187,13.2989,112.87,112.78,47.15470838]
[1644325441391,13.2989,112.87,112.78,41.15470838]
[1644325441589,13.2989,112.87,112.78,47.15470838]
[1644325441788,13.2989,112.87,112.78,54.45180838]
[1644325441988,13.2989,112.87,112.78,60.45180838]
[1644325442190,13.2989,112.87,112.78,54.45180838]
[1644325442687,13.2989,112.87,112.78,60.45180838]
[1644325442891,13.2989,112.87,112.78,54.45180838]
[1644325443110,13.2989,112.87,112.78,60.45180838]
[1644325443594,13.2989,112.87,112.78,54.45180838]
[1644325443791,13.2989,112.87,112.78,60.45180838]
[1644325444493,13.2989,112.87,112.78,54.45180838]
[1644325444693,13.5489,112.87,112.78,54.45180838]
[1644325445091,13.5489,112.87,112.78,60.45180838]
[1644325446191,13.5489,112.87,112.78,54.45180838]
[1644325446592,13.5489,112.87,112.78,60.20180838]
[1644325448093,13.5489,112.87,112.78,60.45180838]
[1644325451507,0.03566226,112.9,112.78,79.00880838]
[1644325451703,46.2461,112.91,112.79,24.71211038]
[1644325451909,3.75976394,112.92,112.8,53.9789661]
[1644325452104,3.75976394,112.92,112.83,41.95653355]
[1644325452307,3.72410168,112.92,112.83,42.20653355]
[1644325452505,13.2919,112.91,112.83,48.20653355]
[1644325453104,13.2919,112.91,112.83,61.49843355]
[1644325453305,0.03566226,112.92,112.83,61.49843355]
[1644325453506,0.03566226,112.93,112.83,81.25543355]
[1644325454106,3.75976394,112.95,112.83,81.25543355]
[1644325454307,0.03566226,112.93,112.83,81.25543355]
[1644325454707,13.32606226,112.93,112.83,81.25543355]
[1644325455808,0.03566226,112.93,112.84,53.28]
[1644325456108,0.03566226,112.95,112.87,42.39087426]
[1644325456309,0.03566226,112.94,112.88,10.68]
[1644325456509,0.03566226,112.96,112.89,48.69268507]
[1644325456712,0.03566226,112.98,112.89,65.62268507]
[1644325456911,0.03566226,112.99,112.89,88.95018507]
[1644325457512,0.03566226,112.99,112.89,82.95018507]
[1644325457711,13.2836,112.98,112.89,102.23358507]
[1644325457910,13.2836,112.98,112.89,112.40058507]
[1644325458125,0.03566226,112.99,112.89,112.40058507]
[1644325459127,13.31786226,112.99,112.89,112.40058507]
[1644325459330,13.56786226,112.99,112.89,102.23358507]
[1644325460228,13.56786226,112.99,112.89,113.91058507]
[1644325460428,13.56786226,112.99,112.89,167.19058507]
[1644325460927,13.56786226,112.99,112.89,113.66058507]
[1644325461129,13.56786226,112.99,112.89,107.66058507]
[1644325461431,13.56786226,112.99,112.89,101.98358507]
[1644325461829,1.24005938,112.95,112.89,101.98358507]
[1644325462032,13.56786226,112.99,112.9,53.28]
[1644325462230,13.56786226,112.99,112.92,13.2818]
[1644325462431,13.5322,112.99,112.93,44.68480242]
[1644325462634,13.2822,112.99,112.93,44.68480242]
[1644325464235,13.5322,112.99,112.93,44.68480242]
[1644325465534,15.63995549,112.99,112.93,26.98407225]
[1644325465936,15.63995549,112.99,112.89,23.3275]
[1644325466137,13.2873,112.96,112.89,23.3275]
[1644325466934,13.2873,112.96,112.9,34.82477758]
[1644325469937,13.2873,112.96,112.9,35.07477758]
[1644325470138,13.2873,112.96,112.9,34.82477758]
[1644325470835,13.2873,112.96,112.9,35.07477758]
[1644325472140,13.2844,112.98,112.9,50.30128746]
[1644325472341,13.2844,112.98,112.9,60.94528746]
[1644325472537,13.2844,112.98,112.9,65.00287758]
[1644325472943,13.2844,112.98,112.9,59.00287758]
[1644325473345,13.2844,112.98,112.9,45.71877758]
[1644325473543,13.5344,112.98,112.9,34.82477758]
[1644325474239,13.5344,112.98,112.9,35.07477758]
[1644325474842,13.5344,112.98,112.9,34.82477758]
[1644325475143,13.2844,112.98,112.9,34.82477758]
[1644325475341,13.2844,112.98,112.9,37.01718746]
[1644325475741,13.2844,112.98,112.9,41.07477758]
[1644325475941,0.03597764,112.99,112.9,54.35897758]
[1644325476142,44.31427764,113.01,112.9,54.35897758]
[1644325477240,44.31427764,113.01,112.9,48.35897758]
[1644325477441,44.31427764,113.01,112.9,54.35897758]
[1644325477747,13.2823,112.99,112.9,54.35897758]
[1644325478146,13.5323,112.99,112.9,54.10897758]
[1644325478342,13.5323,112.99,112.9,34.82477758]
[1644325478541,15.64005549,112.99,112.9,34.82477758]
[1644325479943,13.5323,112.99,112.9,34.82477758]
[1644325480344,13.2823,112.99,112.9,34.82477758]
[1644325481646,15.39005549,112.99,112.9,34.82477758]
[1644325481847,19.36415717,112.99,112.9,34.82477758]
[1644325482247,17.25640168,112.99,112.9,34.82477758]
[1644325482647,17.00640168,112.99,112.9,34.82477758]
[1644325483050,13.2823,112.99,112.9,35.07477758]
[1644325484051,13.5323,112.99,112.9,35.07477758]
[1644325484550,13.5323,112.99,112.9,118.31817758]
[1644325484749,17.00510168,113.0,112.9,128.50517758]
[1644325484950,3.72410168,113.02,112.9,128.50517758]
[1644325485152,0.03597764,113.01,112.9,142.23087574]
[1644325485352,0.03597764,113.01,112.9,156.62546478]
[1644325485754,3.72410168,113.03,112.92,53.28]
[1644325485952,0.03597764,113.01,112.94,13.2769]
[1644325486152,3.76007932,113.03,112.95,47.11372905]
[1644325486351,3.72410168,113.03,112.95,47.11372905]
[1644325486752,3.97410168,113.03,112.95,47.11372905]
[1644325486950,17.25150168,113.03,112.95,47.11372905]
[1644325487149,17.25150168,113.03,112.95,47.36372905]
[1644325487351,17.25150168,113.03,112.95,47.11372905]
[1644325487751,17.00150168,113.03,112.95,47.11372905]
[1644325487951,13.2774,113.03,112.95,47.11372905]
[1644325488952,17.00150168,113.03,112.95,47.11372905]
[1644325489152,17.25150168,113.03,112.95,47.11372905]
[1644325489852,17.25150168,113.03,112.95,47.36372905]
[1644325490054,13.5274,113.03,112.95,47.36372905]